Cogmind - Beta 16.1 @@@ ROGUE MODE // 2026.06.18 @ 23:19:05 Player: Bikerider58 Result: Self-destructed Performance ------------- Evolutions (6) 3000 Regions Visited (18) 3600 Robots Destroyed (205) 1025 Value Destroyed (7669) 7669 Prototype IDs (42) 840 Alien Tech Used (0) 0 Bonus (1268) 1268 TOTAL SCORE: 17402 Bonus ------- High Alert Combat Kills 1078 Follower Combat Kills 2275 Network Hubs Disabled 200 Registered with UFD 300 Met Data Miner 300 Met Zhirov 300 Built Enhanced Grunts 300 A7 Reached Mainframe 300 Met R17 at Cetus 500 Friendly Fire -4285 Cogmind --------- Core Integrity 911/1150 Matter 292/300 Energy 15/600 System Corruption 20% Temperature Cool (0) Movement Immobile (Siege) Location -4/Factory Parts ------- > --- POWER (1) -------- (None) > --- PROPULSION (6) --- Advanced Medium Treads Centrium Heavy Treads Enhanced Armored Heavy Treads > --- UTILITY (8) ------ Advanced Heat Sink Huge Storage Unit Advanced Energy Well Enhanced Optical Array Advanced Signal Interpreter Advanced Transmission Jammer Long-range Tractor Beam > --- WEAPON (4) ------- Phase Cannon (fused) Advanced KE Penetrator Advanced KE Penetrator > --- INVENTORY (25) --- High-capacity Storage Unit Matter Compressor (250) Deep Structural Scanner Long-range Sensor Array Experimental Sensor Array Authchip [Propulsion] Advanced Variable Charge Gun Heavy Disruptor Cannon Heavy Disruptor Cannon Advanced KE Penetrator Gamma Bomb Array Missile Launcher Plasma Cutter Impact Mace Peak State ------------ > --- POWER ------------ Quantum Reactor > --- PROPULSION ------- Centrium Heavy Treads Centrium Heavy Treads Centrium Heavy Treads > --- UTILITY ---------- Huge Storage Unit Advanced Energy Well Enhanced Optical Array Experimental Sensor Array Advanced Signal Interpreter Centrium Medium Armor Plating Centrium Medium Armor Plating Long-range Tractor Beam > --- WEAPON ----------- Advanced KE Penetrator Advanced KE Penetrator Advanced KE Penetrator Helical Railgun > --- INVENTORY -------- Advanced Medium Treads Centrium Heavy Treads Enhanced Armored Heavy Treads Advanced Heat Sink Advanced Heat Sink High-capacity Storage Unit Matter Compressor Deep Structural Scanner Improved Transmission Jammer Improved Medium Armor Plating Force Field Authchip [Propulsion] Advanced Variable Charge Gun Heavy Disruptor Cannon Heavy Disruptor Cannon Phase Cannon Advanced KE Penetrator Gamma Bomb Array Missile Launcher Plasma Cutter Impact Mace [Rating: 163] Favorites ----------- Power Cooled Deuterium Engine Engine Cooled Deuterium Engine Power Core Light Nuclear Core Reactor Quantum Reactor Propulsion Advanced Treads Treads Advanced Treads Leg Aluminum Leg Wheel Overtuned Huge Scrapsphere Flight Unit Improved VTOL Module Utility High-capacity Storage Unit Device Advanced Heat Sink Storage High-capacity Storage Unit Processor Improved Signal Interpreter Hackware Improved Hacking Suite Protection Hardened Medium Armor Plating Weapon Advanced KE Penetrator Energy Gun Pulse Rifle Energy Cannon Beam Cannon Ballistic Gun Advanced KE Penetrator Launcher Gamma Bomb Array Special Weapon CPS Tube Impact Weapon Impact Mace Slashing Weapon Phasing Sabre Piercing Weapon Kinetic Spear Special Melee Weapon Datajack Build | -11 -10 -9 -8 -8 -8 -8 -6 -6 -6 -6 -6 -5 -5 -5 -5 -5 -5 -4 ------- Run | Yrd Mat Mat Mat Sto Rec Scr Fac Was Fac Low Dat Pro Fac Ext Cet Arc Hub Fac Slots Evolved 12 | . . 2 2 . . . 4 . . . . . 2 . . . . 2 Power . | . . . . . . . . . . . . . . . . . . . Propulsion 4 | . . 1 1 . . . 1 . . . . . 1 . . . . . Utility 6 | . . 1 1 . . . 3 . . . . . 1 . . . . . Weapon 2 | . . . . . . . . . . . . . . . . . . 2 Parts Attached 155 | 8 8 22 24 4 4 5 12 9 2 . . . 7 14 16 . 2 18 Power 12 | 1 . 2 3 . . 1 . . . . . . 1 2 1 . . 1 Engine 8 | 1 . 2 3 . . . . . . . . . . 2 . . . . Core 2 | . . . . . . 1 . . . . . . 1 . . . . . Reactor 2 | . . . . . . . . . . . . . . . 1 . . 1 Propulsion 40 | 2 3 9 7 1 2 1 3 2 . . . . 1 1 3 . . 5 Treads 29 | 2 1 8 6 1 2 1 . . . . . . . . 3 . . 5 Leg 2 | . 2 . . . . . . . . . . . . . . . . . Wheel 1 | . . . . . . . . . . . . . . 1 . . . . Hover . | . . . . . . . . . . . . . . . . . . . Flight 8 | . . 1 1 . . . 3 2 . . . . 1 . . . . . Utility 54 | 2 3 6 7 . 1 2 7 2 2 . . . 1 7 5 . 2 7 Device 20 | 1 1 2 3 . . . 2 1 . . . . . 2 2 . 1 5 Storage 10 | 1 2 . 1 . . . 1 . 1 . . . . 2 1 . . 1 Processor 10 | . . 1 1 . 1 1 2 1 1 . . . . 2 . . . . Hackware 3 | . . 1 . . . . 2 . . . . . . . . . . . Protection 11 | . . 2 2 . . 1 . . . . . . 1 1 2 . 1 1 Artifact . | . . . . . . . . . . . . . . . . . . . Weapon 49 | 3 2 5 7 3 1 1 2 5 . . . . 4 4 7 . . 5 Energy Gun 6 | . . 1 2 . . 1 . . . . . . . . 2 . . . Energy Cannon 10 | . 2 3 2 1 . . 2 . . . . . . . . . . . Ballistic Gun 19 | 3 . . . 2 . . . 2 . . . . 2 2 4 . . 4 Ballistic Cannon . | . . . . . . . . . . . . . . . . . . . Launcher 3 | . . . 1 . . . . 1 . . . . . . . . . 1 Special Weapon 2 | . . . . . . . . 1 . . . . . . 1 . . . Impact Weapon 3 | . . 1 2 . . . . . . . . . . . . . . . Slashing Weapon 2 | . . . . . . . . . . . . . . 2 . . . . Piercing Weapon 3 | . . . . . . . . 1 . . . . 2 . . . . . Special Melee Weapon 1 | . . . . . 1 . . . . . . . . . . . . . Unidentified Prototypes 18 | . . 3 4 1 . . 1 2 . . . . 2 . 5 . . . Corrupted Parts 1 | . . . . . . . . . . . . . . . . . . 1 System Corruption 1 | . . . . . . . . . . . . . . . . . . 1 Parts Lost 22 | . 1 4 2 . . . . . . . . . . 1 . 1 2 11 Power 3 | . . 1 . . . . . . . . . . . . . . 1 1 Propulsion 5 | . 1 2 . . . . . . . . . . . . . . . 2 Utility 11 | . . 1 2 . . . . . . . . . . 1 . 1 1 5 Weapon 3 | . . . . . . . . . . . . . . . . . . 3 Highest Loss Streak 6 | . 1 2 1 . . . . . . . . . . 1 . 1 1 6 To Critical Strikes . | . . . . . . . . . . . . . . . . . . . Average Backups 15 | . 7 14 17 19 19 18 9 9 10 10 10 10 9 10 18 19 18 18 Power . | . . . . 1 1 . . . . . . . . . 1 1 1 . Propulsion 3 | . 1 3 4 6 6 5 1 1 1 1 1 1 . . . 1 1 2 Utility 5 | . 3 6 6 6 6 6 3 3 4 4 4 4 3 3 4 5 4 7 Weapon 4 | . 2 2 4 4 4 3 2 3 4 4 4 4 4 4 10 11 11 7 Tool/Special . | . . . . . . . . . . . . . . . . . . . Unused Backups 39 | . 2 8 9 2 . 4 7 2 . . . . . . 1 . . 4 Power 4 | . 1 1 2 . . . . . . . . . . . . . . . Propulsion 8 | . 1 5 1 . . . 1 . . . . . . . . . . . Utility 14 | . . 1 4 . . 4 3 1 . . . . . . . . . 1 Weapon 12 | . . 1 2 2 . . 2 1 . . . . . . 1 . . 3 Tool/Special 1 | . . . . . . . 1 . . . . . . . . . . . Average Slot Usage (%) 94 | . 99 97 99 100 99 94 99 94 93 93 93 93 91 93 86 82 81 82 Engine 5 | . 14 10 8 9 9 7 . . . . . . . 4 . . . . Core 1 | . . . . . . 1 6 6 6 6 6 6 5 . . . . . Reactor 1 | . . . . . . . . . . . . . . . 4 5 5 4 Treads 21 | . 23 27 35 36 35 34 . . . . . . . . 9 17 17 14 Flight 6 | . . . . . . . 32 29 26 26 26 26 28 28 10 . . . Device 7 | . 14 8 8 9 . . 12 11 10 8 6 6 10 6 9 11 10 10 Storage 8 | . 14 11 9 9 9 8 6 6 6 6 6 6 5 6 5 11 11 9 Processor 12 | . . 2 9 9 17 18 8 14 20 20 20 20 17 19 22 11 11 10 Hackware 2 | . . 7 . . . . 9 6 6 6 6 6 5 4 . . . . Protection 6 | . . 2 9 9 9 7 6 6 2 4 6 6 5 5 5 11 11 9 Energy Gun 1 | . . . 2 2 . 7 . . . . . . . . 4 11 5 . Energy Cannon 5 | . 14 21 15 10 . . . . 1 6 6 6 1 . . . . 2 Ballistic Gun 5 | . 13 . . 4 17 . . . . . . . . 4 5 . 5 17 Special Melee Weapon 1 | . . . . . . 9 6 1 . . . . . . . . . . Peak Build Rating 163 | 7 9 21 40 40 40 38 64 85 81 79 78 78 95 97 139 139 143 163 Average Rating 63 | 6 7 16 35 39 38 33 60 71 79 78 78 78 89 89 115 139 140 152 On Entrance 64 | . 7 9 20 40 40 32 38 64 79 78 78 78 78 95 87 139 134 129 Avg Prop Armor Cover (%) 4 | . . 6 . . . . . 6 . . . . . 4 3 . . . Naked Turns . | . . . . . . . . . . . . . . . . . . . Heaviest Build 151 | 15 32 40 73 74 66 63 24 32 30 30 30 30 35 66 89 89 93 151 Greatest Support 240 | 40 40 64 86 84 84 84 25 30 30 30 30 30 36 36 240 240 240 240 Greatest Overweight (x) 3 | . 1 2 . . 1 . . 1 . . . . . 3 3 . . . Average Overweight (x) . | . . . . . . . . . . . . . . . 1 . . . Largest Inventory Capacity 25 | 8 15 15 20 20 20 20 20 10 10 10 10 10 10 20 20 20 20 25 Average Capacity 16 | 7 11 15 17 20 20 19 10 10 10 10 10 10 10 10 20 20 20 22 Most Carried 25 | 2 14 15 20 20 20 20 19 10 10 10 10 10 10 15 20 20 20 25 Average Carried 16 | . 7 14 17 19 19 18 10 9 9 10 10 10 9 10 18 20 19 21 Final Capacity 25 | 8 15 15 20 20 20 20 10 10 10 10 10 10 10 20 20 20 20 25 Final Carried 20 | 2 13 15 20 20 19 20 10 10 10 10 10 10 10 15 20 20 19 16 Class Distribution -------------------- 28% | Commander-Mutant 25% | Mutant 13% | Scavenger-Tank 11% | Scavenger-Mutant 10% | Scout 4% | Commander-Sprinter Dominant Class ---------------- Mutant | -10/Materials Mutant | -9/Materials Mutant | -8/Materials Commander-Mutant | -8/Storage Commander-Mutant | -8/Recycling Commander-Mutant | -8/Scraptown Hacker-Scout | -6/Factory Scout | -6/Waste Scout | -6/Factory Scout | -6/Lower Caves Scout | -6/Data Miner Scout | -5/Proximity Caves Scout | -5/Factory Commander-Sprinter | -5/Extension Scavenger-Mutant | -5/Cetus Scavenger-Mutant | -5/Archives Scavenger-Skirmisher | -5/Hub_04(d) Scavenger-Tank | -4/Factory Resources | -11 -10 -9 -8 -8 -8 -8 -6 -6 -6 -6 -6 -5 -5 -5 -5 -5 -5 -4 ----------- Run | Yrd Mat Mat Mat Sto Rec Scr Fac Was Fac Low Dat Pro Fac Ext Cet Arc Hub Fac Matter Collected 6826 | 299 280 379 739 130 496 458 439 228 130 . . 40 90 614 321 . 155 2028 Remotely 1106 | . . . . . . . . . . . . . . . . . . 1106 Salvage Created 10224 | 88 336 1161 1806 321 453 . 269 78 520 . . . 344 624 584 . 396 3244 Parts 481 | 5 18 63 88 20 16 . 5 5 9 . . . 8 26 29 . 24 165 Haulers Intercepted 20 | . 2 3 4 1 . . 2 . 3 . . . 3 . . . . 2 Recyclers Shooed 7 | . . . 1 . 2 . . . . . . . . . . . . 4 Parts Field Recycled . | . . . . . . . . . . . . . . . . . . . Retrieved Matter . | . . . . . . . . . . . . . . . . . . . Parts Self-Destructed . | . . . . . . . . . . . . . . . . . . . Prevented . | . . . . . . . . . . . . . . . . . . . Parts Restored . | . . . . . . . . . . . . . . . . . . . Kills | -11 -10 -9 -8 -8 -8 -8 -6 -6 -6 -6 -6 -5 -5 -5 -5 -5 -5 -4 ------- Run | Yrd Mat Mat Mat Sto Rec Scr Fac Was Fac Low Dat Pro Fac Ext Cet Arc Hub Fac Combat Hostiles Destroyed 135 | . 5 27 33 4 4 . 1 . 2 . . . . 9 3 . 5 42 Melee 12 | . . . 2 . . . . . 2 . . . . 7 . . . 1 Guns 45 | . 2 3 1 . 4 . . . . . . . . 2 3 . 5 25 Cannons 44 | . 3 22 14 3 . . . . . . . . . . . . . 2 AOE 19 | . . . 7 . . . 1 . . . . . . . . . . 11 Classes Destroyed 14 | 2 2 4 2 . . . 1 1 . . . . . . . . . 2 Worker 4 | . . 1 1 . . . . . . . . . . . . . 1 1 Builder 6 | . . . . . . . . . . . . . . . . . . 6 Tunneler 6 | 2 1 1 . . . . . . 2 . . . . . . . . . Hauler 20 | . 2 3 4 1 . . 2 . 3 . . . 3 . . . . 2 Recycler 8 | 1 . . 1 . 3 . . . . . . . . . . . . 3 Operator 9 | . . 1 3 1 . . 1 . . . . . 1 . . . 1 1 Watcher 9 | . . . 1 . . . 1 . 2 . . . 2 . 2 . . 1 Swarmer 26 | . . 9 7 1 . . . . . . . . . . . . . 9 Grunt 62 | . 5 11 17 2 . . . . 1 . . . . 6 . . 3 17 Sentry 26 | . . 7 6 2 4 . . . 1 . . . . 2 . . . 4 Hunter 8 | . . . 3 . . . . . . . . . . . . . . 5 Programmer 8 | . . . . . . . 1 . . . . . . . . . . 7 Cetus Guard 3 | . . . . . . . . . . . . . . . 3 . . . Lightning 2 | . . . . . . . . . . . . . . . . . 2 . Scrapoid 1 | . . . . . . . . . . . . . . . . . . 1 Butcher 2 | . . . . . . . . 1 . . . . . 1 . . . . Guerrilla 4 | . . . . . . . . . . . . . . . 4 . . . Best Kill Streak 14 | 2 2 7 8 1 3 . 2 . 3 . . . 3 2 4 . 3 14 Combat Bots Only 10 | . 2 7 8 1 1 . 1 . 1 . . . . 2 3 . 3 10 Max Kills in Single Turn 3 | 1 1 2 2 1 1 . 1 1 1 . . . 1 1 1 . 1 3 Gunslinging 1 | . . 1 . . . . . . . . . . . . . . . 1 Exploded 2 | . . . 2 . . . 1 . . . . . . . . . . 2 Melee 1 | . . . 1 . . . . . 1 . . . . 1 . . . 1 Uniques/NPCs Destroyed 1 | . . . . . . . . . . . . . . . 1 . . . A7 (-5/Cetus) Combat | -11 -10 -9 -8 -8 -8 -8 -6 -6 -6 -6 -6 -5 -5 -5 -5 -5 -5 -4 -------- Run | Yrd Mat Mat Mat Sto Rec Scr Fac Was Fac Low Dat Pro Fac Ext Cet Arc Hub Fac Hostile Shots Fired 909 | . 52 198 93 26 30 . 33 . . . . . . 49 20 . 98 310 Missed 260 | . 15 46 37 9 7 . 20 . . . . . . 21 5 . 15 85 Hits 649 | . 37 152 56 17 23 . 13 . . . . . . 28 15 . 83 225 Projectile 649 | . 37 152 56 17 23 . 13 . . . . . . 28 15 . 83 225 Critical Strikes 19 | . 1 1 1 1 . . . . . . . . . . 1 . 6 8 Damage Taken 11710 | . 467 1618 869 187 331 . 184 51 . . . . . 600 219 498 2494 4192 Core 1022 | . 60 327 43 16 15 . 49 . . . . . . 161 13 . 99 239 Absorbed by Shields 491 | . . . . . . . 36 . . . . . . 84 189 . . 182 Reduced by Siege Mode 385 | . . . . . . . . . . . . . . . . . 216 169 Regen/Repaired (Parts) 1390 | . . . . 57 . . . 147 . . . . . . . . . 1186 Core Remaining (%) 74 | 100 76 18 . . . 86 . . . . . 94 . . . . 72 . Volleys Fired 493 | 9 41 85 65 13 34 . 7 12 4 2 . 10 . 45 32 . 32 102 Largest 4 | 2 2 2 2 2 2 . 1 1 1 1 . 1 . 2 2 . 2 4 Hottest 240 | 40 120 128 138 138 50 . 90 85 85 85 . 85 . 61 240 . 160 193 Shots Fired 984 | 18 82 170 122 25 67 . 7 12 4 2 . 10 . 66 59 . 57 283 Gun 613 | 18 66 8 20 7 67 . . . . . . . . 66 59 . 55 247 Cannon 356 | . 16 162 100 18 . . 4 10 4 2 . 10 . . . . 2 28 Launcher 13 | . . . 2 . . . 3 . . . . . . . . . . 8 Special 2 | . . . . . . . . 2 . . . . . . . . . . Kinetic 532 | 18 66 4 . 5 67 . . . . . . . . 66 28 . 37 241 Thermal 299 | . 16 166 2 . . . 4 10 4 2 . 10 . . 31 . 20 34 Explosive 8 | . . . 2 . . . 3 . . . . . . . . . . 3 Electromagnetic 143 | . . . 118 20 . . . . . . . . . . . . . 5 Robot Hit Streak 20 | 3 14 14 9 12 16 . 2 8 . . . . . 11 12 . 20 18 Robot Miss Streak 5 | 4 2 4 3 2 4 . . 2 . . . . . 4 2 . 3 5 Penetration Max 2 | . . . . . . . . . . . . . . 1 1 . 1 2 Secondary Targets 8 | . . 1 . . 1 . . . . . . . . . . . . 6 Max Gunslinging Chain 1 | . . 1 . . 1 . . . . . . . . . . . . 1 Shots Hit Robots 679 | 9 64 99 89 20 54 3 8 10 10 . . . 15 59 54 . 29 156 Core Hits 305 | 5 15 36 50 7 11 . 2 3 4 . . . 3 18 20 . 18 113 Critical Kills 25 | . . . 1 . 1 . . . 1 . . . . . 4 . 3 15 Critical Parts Destroyed 34 | . . . 2 . . . 3 . 3 . . . 1 . 3 . 2 20 Critical Strikes 64 | . . . 4 . 1 . 3 . 5 . . . 1 2 7 . 5 36 Destroy 46 | . . . . . 1 . . . . . . . . . 4 . 5 36 Corrupt 1 | . . . 1 . . . . . . . . . . . . . . . Smash 14 | . . . 3 . . . 3 . 4 . . . 1 . 3 . . . Impale 3 | . . . . . . . . . 1 . . . . 2 . . . . Melee Attacks 121 | . . 1 6 . 3 3 29 1 23 . . . 20 28 7 . . . Impact 57 | . . 1 6 . . . 28 . 9 . . . 9 . 4 . . . Slashing 5 | . . . . . . . . . . . . . . 2 3 . . . Piercing 52 | . . . . . . . . 1 14 . . . 11 26 . . . . Sneak Attacks 30 | . . . . . 3 3 4 1 6 . . . 3 3 7 . . . Combat Hostiles 2 | . . . . . . . . . 1 . . . . 1 . . . . Follow-up Attacks 2 | . . . . . . . . . 1 . . . . 1 . . . . Damage Inflicted 22946 | 101 854 1866 2872 514 861 . 574 331 1023 . . . 1019 2161 2118 . 869 7783 Guns 10216 | 93 634 92 303 110 853 . . . . . . . . 957 1412 . 869 4893 Cannons 4770 | . 211 1769 1893 404 . . . 249 . . . . . . . . . 244 Explosions 3155 | . . . 387 . . . 45 . . . . . . 120 . . . 2603 Melee 4696 | . . . 253 . . . 529 82 1023 . . . 1019 1084 706 . . . Ramming 109 | 8 9 5 36 . 8 . . . . . . . . . . . . 43 Kinetic 8707 | 93 634 39 . 87 853 . . . . . . . . 957 659 . 655 4730 Thermal 4236 | . 211 1822 253 . . . . 249 . . . . . 120 753 . 214 614 Explosive 1677 | . . . 152 . . . 45 . . . . . . . . . . 1480 Electromagnetic 3521 | . . . 2178 427 . . . . . . . . . . . . . 916 Impact 2342 | . . . 253 . . . 529 . 575 . . . 502 . 483 . . . Slashing 389 | . . . . . . . . . . . . . . 166 223 . . . Piercing 1965 | . . . . . . . . 82 448 . . . 517 918 . . . . Highest Corruption 20 | . . 1 6 6 6 . . . . . . . . . . . 12 20 Average Corruption 4 | . . 1 1 6 6 . . . . . . . . . . . 8 5 Corruption Purged . | . . . . . . . . . . . . . . . . . . . Corruption Blocked . | . . . . . . . . . . . . . . . . . . . Effects 108 | . . 2 10 12 35 . . . . . . . . . . . 4 45 Message Errors 24 | . . . 2 . 10 . . . . . . . . . . . 2 10 Matter Fused 19 | . . . . 4 5 . . . . . . . . . . . . 10 Heat Flow Errors 14 | . . . 2 4 1 . . . . . . . . . . . . 7 Energy Discharges 9 | . . . 1 1 5 . . . . . . . . . . . . 2 Parts Rejected 4 | . . . 1 . 1 . . . . . . . . . . . . 2 Parts Fused 4 | . . . . . 2 . . . . . . . . . . . . 2 Data Loss (minor) 19 | . . 2 2 2 7 . . . . . . . . . . . . 6 Data Loss (major) 4 | . . . . . 3 . . . . . . . . . . . . 1 Misfires 2 | . . . . . . . . . . . . . . . . . 1 1 Alerts 1 | . . . 1 . . . . . . . . . . . . . . . Weapon Failures 8 | . . . 1 1 1 . . . . . . . . . . . 1 4 Overload Shots 2 | . . . . . . . 1 . . . . . . . 1 . . . Overflow Damage 1554 | . . . 121 4 . . 385 . 459 . . . 209 . 274 . . 102 Projectiles 28 | . . . 24 4 . . . . . . . . . . . . . . Explosions 102 | . . . . . . . . . . . . . . . . . . 102 Melee 1424 | . . . 97 . . . 385 . 459 . . . 209 . 274 . . . Knockbacks 5 | . . . 2 . . . 2 . . . . . . . 1 . . . Impact 5 | . . . 2 . . . 2 . . . . . . . 1 . . . Kinetic . | . . . . . . . . . . . . . . . . . . . Secondary . | . . . . . . . . . . . . . . . . . . . Self-Inflicted Damage 447 | . . . 63 . . . 91 . . . . . . 89 . . . 204 Shots 14 | . . . 2 . . . 2 . . . . . . 1 . . . 9 Rammed 14 | 2 2 1 5 . 1 . . . . . . . . . . . . 3 Targets Rammed 20 | 2 2 2 7 . 1 . . . . . . . . . . . 1 5 Kicked . | . . . . . . . . . . . . . . . . . . . Crushed 6 | . . 1 2 . . . . . . . . . . . . . 1 2 Highest Temperature 398 | . 138 398 260 256 151 . 44 380 105 76 . 215 . 3 70 . 64 289 Average Temperature 80 | . 38 107 80 58 31 . 5 154 50 38 . 81 . 2 52 . 21 79 Received Heat Transfer 2042 | . 273 390 270 81 108 . 27 . . . . . . 183 . . 198 512 Siege Activations 8 | . . . . . . . . . . . . . . . . . 2 6 Total Turns 127 | . . . . . . . . . . . . . . . . . 58 69 Longest Duration 34 | . . . . . . . . . . . . . . . . . 34 19 Martial Activations . | . . . . . . . . . . . . . . . . . . . Shielding Activations . | . . . . . . . . . . . . . . . . . . . Robots Disrupted . | . . . . . . . . . . . . . . . . . . . Combat Hostiles . | . . . . . . . . . . . . . . . . . . . Robots Corrupted 23 | . . . 9 1 . . 3 . 2 . . . 3 . 2 . . 3 Combat Hostiles 13 | . . . 9 1 . . . . . . . . . . . . . 3 Parts Fried 37 | . . . 17 1 . . 1 . 4 . . . 5 . 1 . . 8 Impact Corruptions 32 | . . . 3 . . . 10 . 8 . . . 5 . 6 . . . Robots Melted 2 | . . 2 . . . . . . . . . . . . . . . . Combat Hostiles 2 | . . 2 . . . . . . . . . . . . . . . . Parts Melted 19 | . 1 15 . . . . . . 1 . . . . . . . . 2 Heat Transferred 6180 | . 444 3774 287 . . . . 296 . . . . . 51 451 . 296 581 Parts Sabotaged . | . . . . . . . . . . . . . . . . . . . Parts Stolen . | . . . . . . . . . . . . . . . . . . . Parts Stripped . | . . . . . . . . . . . . . . . . . . . Power Chain Reactions 4 | . . . 4 . . . . . . . . . . . . . . . Alert | -11 -10 -9 -8 -8 -8 -8 -6 -6 -6 -6 -6 -5 -5 -5 -5 -5 -5 -4 ------- Run | Yrd Mat Mat Mat Sto Rec Scr Fac Was Fac Low Dat Pro Fac Ext Cet Arc Hub Fac Maximum Alert Level 4 | . . 1 2 2 1 . . . 2 . . . . 2 2 2 1 4 Low Security (%) 56 | 100 100 76 39 29 75 . 100 100 37 . . . 100 58 . 72 74 18 Level 1 20 | . . 23 36 30 24 . . . 59 . . . . 13 36 5 25 12 Level 2 17 | . . . 23 40 . . . . 2 . . . . 28 63 22 . 34 Level 3 3 | . . . . . . . . . . . . . . . . . . 23 Level 4 1 | . . . . . . . . . . . . . . . . . . 10 Level 5 . | . . . . . . . . . . . . . . . . . . . High Security . | . . . . . . . . . . . . . . . . . . . Max Security . | . . . . . . . . . . . . . . . . . . . Peak Influence 1441 | 5 90 270 639 469 275 . 102 24 404 . . . 31 568 502 439 239 1441 Initial 303 | . . . 111 262 162 . . 24 . . . . . . 303 138 149 98 Average 250 | . 27 157 289 302 140 . 24 2 225 . . . 14 216 411 213 180 593 Influence Increases 8220 | 15 224 767 1042 579 344 . 382 11 692 . . . 94 1086 345 331 221 2087 Destroy 0b10 Robot/C 3900 | . 100 540 660 260 80 . 80 . 320 . . . . 540 160 140 100 920 Destroy 0b10 Robot/NC 355 | 15 15 30 50 10 15 . 20 . 45 . . . 30 30 10 5 10 70 Destroy Leader 808 | . 34 126 180 82 . . 46 . 72 . . . 10 62 . . 10 186 Allied During Kill 1041 | . . . . 172 13 . 20 . 130 . . . . 364 142 145 . 55 Successful Hack 133 | . . 8 . 25 26 . 35 . 15 . . . . . . . . 24 Select Force Hacks 330 | . . . 30 . 210 . . . 20 . . . 20 . . . 50 . Disable Machine 450 | . . 15 75 30 . . 15 . 15 . . . 15 15 15 15 15 225 Destroy Structure 738 | . . 3 32 . . . 31 11 15 . . . 4 60 18 26 36 502 Partial Spotted 120 | . . . . . . . 30 . 60 . . . 15 15 . . . . Lose Combat Pursuer 345 | . 75 45 15 . . . 105 . . . . . . . . . . 105 Influence Decreases 6830 | 15 224 501 685 785 733 28 313 80 304 205 183 . 94 544 541 248 450 897 Entered New Map 2001 | . . . 155 361 255 28 . 45 . 145 183 . . . 239 208 280 102 Time Decay 3809 | 15 214 461 510 214 478 . 193 15 194 60 . . 94 354 262 30 150 565 Lost Part 220 | . 10 40 20 . . . . . . . . . . 10 . 10 20 110 Lost Ally 650 | . . . . 60 . . 120 20 110 . . . . 180 40 . . 120 Purge Threat 150 | . . . . 150 . . . . . . . . . . . . . . Squads Dispatched 57 | . 1 3 7 1 . . 7 . 6 . . . 3 2 . . 2 25 Investigation 26 | . . 1 3 . . . 5 . 5 . . . 2 . . . 2 8 Extermination 6 | . . . . . . . 1 . 1 . . . . . . . . 4 Reinforcement 17 | . 1 2 4 1 . . 1 . . . . . 1 2 . . . 5 Assault 2 | . . . . . . . . . . . . . . . . . . 2 Garrison 6 | . . . . . . . . . . . . . . . . . . 6 Intercept . | . . . . . . . . . . . . . . . . . . . Searches Triggered . | . . . . . . . . . . . . . . . . . . . Data Miner Redirects 5 | . . . . . . . . . . . . . . . . . 2 3 Construction Impeded 5 | . . . 1 . . . . . . . . . . 2 . . . 2 Haulers Reinforced 2 | . . . . . . . . . . . . . 1 . . . . 1 Active Scanning Responses . | . . . . . . . . . . . . . . . . . . . Cargo Convoy Interrupts . | . . . . . . . . . . . . . . . . . . . Stealth | -11 -10 -9 -8 -8 -8 -8 -6 -6 -6 -6 -6 -5 -5 -5 -5 -5 -5 -4 --------- Run | Yrd Mat Mat Mat Sto Rec Scr Fac Was Fac Low Dat Pro Fac Ext Cet Arc Hub Fac Distress Signals 19 | . . 3 5 1 . . 1 . 3 . . . . . 1 . . 5 Communications Jammed 5 | . . . . . . . . . . . . . . . . . . 5 Distress Signals 5 | . . . . . . . . . . . . . . . . . . 5 Times Spotted 287 | . 14 43 49 12 4 . 15 6 15 . . . 4 25 9 6 21 64 Peak Tracking Total 11 | . 3 6 6 5 1 . 6 6 5 . . . 2 3 5 6 11 6 Tactical Retreats 16 | . 6 2 1 . . . 4 . . . . . . . . . . 3 Traps | -11 -10 -9 -8 -8 -8 -8 -6 -6 -6 -6 -6 -5 -5 -5 -5 -5 -5 -4 ------- Run | Yrd Mat Mat Mat Sto Rec Scr Fac Was Fac Low Dat Pro Fac Ext Cet Arc Hub Fac Traps Triggered 16 | . . 2 6 . . . 2 . 2 . . . . 2 . . . 2 Indirectly . | . . . . . . . . . . . . . . . . . . . Trap Hack Attempts . | . . . . . . . . . . . . . . . . . . . Triggered . | . . . . . . . . . . . . . . . . . . . Disarmed . | . . . . . . . . . . . . . . . . . . . Reprogrammed . | . . . . . . . . . . . . . . . . . . . Reused . | . . . . . . . . . . . . . . . . . . . Traps Extracted . | . . . . . . . . . . . . . . . . . . . Installed . | . . . . . . . . . . . . . . . . . . . Triggered . | . . . . . . . . . . . . . . . . . . . Machines | -11 -10 -9 -8 -8 -8 -8 -6 -6 -6 -6 -6 -5 -5 -5 -5 -5 -5 -4 ---------- Run | Yrd Mat Mat Mat Sto Rec Scr Fac Was Fac Low Dat Pro Fac Ext Cet Arc Hub Fac Machines Disabled 34 | . . 1 5 2 . . 1 . 1 . . . 1 5 1 1 1 15 Max in Single Turn 5 | . . 1 1 . . . 1 . . . . . 1 1 1 . 1 5 Garrison Access 2 | . . . . 1 . . 1 . . . . . . . . . . . Network Hub 1 | . . . . . . . . . . . . . . . . . 1 . Energy Cycler 2 | . . . . . . . . . . . . . . 2 . . . . Machines Repaired . | . . . . . . . . . . . . . . . . . . . Machines Dismantled 1 | . . . . . . . . . . . . . . . 1 . . . Machines Sabotaged 1 | . . . . . . . . . . . . . . . . . 1 . Overloaded Fab Kills . | . . . . . . . . . . . . . . . . . . . Hacking | -11 -10 -9 -8 -8 -8 -8 -6 -6 -6 -6 -6 -5 -5 -5 -5 -5 -5 -4 --------- Run | Yrd Mat Mat Mat Sto Rec Scr Fac Was Fac Low Dat Pro Fac Ext Cet Arc Hub Fac Machines Accessed 82 | . 2 5 4 8 12 3 16 . 9 . 4 . 5 . . . 2 12 Terminals 33 | . 1 4 1 6 5 . 6 . 3 . . . 2 . . . 2 3 Fabricators 6 | . . . . . . . 3 . 1 . . . 1 . . . . 1 Repair Stations 5 | . . . . 1 . . . . . . . . . . . . . 4 Recycling Units 21 | . 1 . 1 . 7 . 4 . 3 . . . 2 . . . . 3 Scanalyzers 5 | . . 1 2 . . . . . 2 . . . . . . . . . Garrison Access 5 | . . . . 1 . . 3 . . . . . . . . . . 1 Total Hacks 214 | . 3 12 13 15 23 30 37 . 20 . 25 . 9 . . . 4 23 Successful 132 | . 1 4 12 9 14 30 14 . 11 . 25 . 3 . . . 2 7 Failed 81 | . 2 8 1 6 9 . 23 . 8 . . . 6 . . . 2 16 Catastrophic 20 | . 1 1 . 2 . . 7 . . . . . 2 . . . . 7 Database Lockouts 1 | . . . . . . . . . 1 . . . . . . . . . Manual 81 | . . 8 1 4 19 . 11 . 10 . . . 8 . 1 . 4 15 Terminals 69 | . 1 8 1 9 13 . 17 . 6 . . . 3 . . . 4 7 Fabricators 11 | . . . . . . . 5 . 3 . . . 1 . . . . 2 Repair Stations 11 | . . . . 3 . . . . . . . . . . . . . 8 Recycling Units 33 | . 2 . 1 . 10 . 6 . 4 . . . 5 . . . . 5 Scanalyzers 22 | . . 4 11 . . . . . 7 . . . . . . . . . Garrison Access 13 | . . . . 3 . . 9 . . . . . . . . . . 1 Terminal Hacks 71 | . 1 1 . 5 . 30 5 . 2 . 25 . . . . . . 2 Record 31 | . . . . . . 24 . . . . 7 . . . . . . . Part Schematic 12 | . . . . . . . 1 . . . 11 . . . . . . . Robot Schematic 4 | . . . . . . . . . . . 4 . . . . . . . Robot Analysis 6 | . . . . . . 6 . . . . . . . . . . . . Prototype ID Bank 5 | . . . . . . . 2 . . . 3 . . . . . . . Open Door 2 | . . . . 2 . . . . . . . . . . . . . . Branch Access Points 3 | . . 1 . . . . . . 1 . . . . . . . . 1 Recycling Unit Index 1 | . . . . . . . . . . . . . . . . . . 1 Unreport Threat 1 | . . . . 1 . . . . . . . . . . . . . . Hauler Manifests 4 | . 1 . . 1 . . 1 . 1 . . . . . . . . . Zone Layout 2 | . . . . 1 . . 1 . . . . . . . . . . . Fabricator Hacks 4 | . . . . . . . 2 . 1 . . . . . . . . 1 Network Status 2 | . . . . . . . 1 . 1 . . . . . . . . . Build 2 | . . . . . . . 1 . . . . . . . . . . 1 Repair Station Hacks 2 | . . . . 2 . . . . . . . . . . . . . . Scan Component 1 | . . . . 1 . . . . . . . . . . . . . . Repair 1 | . . . . 1 . . . . . . . . . . . . . . Recycling Unit Hacks 1 | . . . . . 1 . . . . . . . . . . . . . Retrieve Components 1 | . . . . . 1 . . . . . . . . . . . . . Scanalyzer 18 | . . 3 11 . . . . . 4 . . . . . . . . . Insert Component 7 | . . 1 4 . . . . . 2 . . . . . . . . . Analyze 8 | . . 1 6 . . . . . 1 . . . . . . . . . Retrieve Study 3 | . . 1 1 . . . . . 1 . . . . . . . . . Garrison Access Hacks 2 | . . . . 1 . . 1 . . . . . . . . . . . Seal Access 2 | . . . . 1 . . 1 . . . . . . . . . . . Unauthorized Hacks 33 | . . . 1 1 13 . 6 . 4 . . . 2 . . . 2 4 Terminals 10 | . . . . 1 6 . 1 . . . . . . . . . 2 . Assimilate 1 | . . . . 1 . . . . . . . . . . . . . . Botnet 2 | . . . . . 1 . 1 . . . . . . . . . . . Skim 5 | . . . . . 5 . . . . . . . . . . . . . Sabotage 2 | . . . . . . . . . . . . . . . . . 2 . Fabricators 3 | . . . . . . . 1 . 1 . . . 1 . . . . . Haulers 1 | . . . . . . . 1 . . . . . . . . . . . Download 2 | . . . . . . . . . 1 . . . 1 . . . . . Repair Stations 2 | . . . . . . . . . . . . . . . . . . 2 Patch 2 | . . . . . . . . . . . . . . . . . . 2 Recycling Units 18 | . . . 1 . 7 . 4 . 3 . . . 1 . . . . 2 Tunnel 8 | . . . 1 . 7 . . . . . . . . . . . . . Fedlink 6 | . . . . . . . 3 . 3 . . . . . . . . . Scrapoids 4 | . . . . . . . 1 . . . . . 1 . . . . 2 Scanalyzers . | . . . . . . . . . . . . . . . . . . . Garrison Access . | . . . . . . . . . . . . . . . . . . . Data Cores Recovered 3 | . . 1 . . . . 1 . . . . . . . . . 1 . Used 2 | . . . . . . . 1 . . . . . . . . . 1 . Hacking Detections 46 | . 1 4 1 3 5 . 13 . 6 . . . 4 . 1 . 1 7 Full Trace Events 6 | . . . 1 . . . 1 . . . . . . . . . . 4 Feedback Events . | . . . . . . . . . . . . . . . . . . . Feedback Blocked . | . . . . . . . . . . . . . . . . . . . Robot Schematics Acquired 4 | . . . . . . . . . . . 4 . . . . . . . Robots Built . | . . . . . . . . . . . . . . . . . . . Authchips . | . . . . . . . . . . . . . . . . . . . Time . | . . . . . . . . . . . . . . . . . . . Total Robot Build Rating . | . . . . . . . . . . . . . . . . . . . Part Schematics Acquired 20 | . . 1 4 . . . 1 . 2 . 11 . 1 . . . . . Parts Built 3 | . . . . . . . 2 . . . . . . . . . . 1 Authchips . | . . . . . . . . . . . . . . . . . . . Time 339 | . . . . . . . 117 . . . . . . . . . . 222 Total Part Build Rating 23 | . . . . . . . 14 . . . . . . . . . . 9 Part Studies Acquired 3 | . . 1 1 . . . . . 1 . . . . . . . . . Parts Repaired 1 | . . . . 1 . . . . . . . . . . . . . . Time 51 | . . . . 51 . . . . . . . . . . . . . . Parts Recycled . | . . . . . . . . . . . . . . . . . . . Recycled Matter . | . . . . . . . . . . . . . . . . . . . Retrieved Matter . | . . . . . . . . . . . . . . . . . . . Retrieved Components 9 | . . . . . 9 . . . . . . . . . . . . . Parts Scanalyzed 7 | . . 1 4 . . . . . 2 . . . . . . . . . Part Schematics Acquired 6 | . . 1 4 . . . . . 1 . . . . . . . . . Parts Damaged . | . . . . . . . . . . . . . . . . . . . Bothacking | -11 -10 -9 -8 -8 -8 -8 -6 -6 -6 -6 -6 -5 -5 -5 -5 -5 -5 -4 ------------ Run | Yrd Mat Mat Mat Sto Rec Scr Fac Was Fac Low Dat Pro Fac Ext Cet Arc Hub Fac Used RIF Installer . | . . . . . . . . . . . . . . . . . . . Robots Hacked 7 | . . . . . 3 3 1 . . . . . . . . . . . Non-combat 2 | . . . . . 1 . 1 . . . . . . . . . . . Combat 5 | . . . . . 2 3 . . . . . . . . . . . . Robot Hacks Applied 7 | . . . . . 3 3 1 . . . . . . . . . . . parse_system 6 | . . . . . 3 3 . . . . . . . . . . . . find_chute 1 | . . . . . . . 1 . . . . . . . . . . . Relay Couplers Released . | . . . . . . . . . . . . . . . . . . . Fabnet Peak Effective % . | . . . . . . . . . . . . . . . . . . . Robots Rewired 10 | . . . . . . . . . . . . . . 10 . . . . Allies Hacked 3 | . . . . . . . 1 . 1 . . . . . . . . 1 Hacks Repelled . | . . . . . . . . . . . . . . . . . . . Allies | -11 -10 -9 -8 -8 -8 -8 -6 -6 -6 -6 -6 -5 -5 -5 -5 -5 -5 -4 -------- Run | Yrd Mat Mat Mat Sto Rec Scr Fac Was Fac Low Dat Pro Fac Ext Cet Arc Hub Fac Total Allies 72 | . . . . 10 . . 5 19 . . . . 5 18 5 . . 10 Largest Group 16 | . . . . 10 5 5 7 16 9 . . . 5 16 11 9 . 5 Highest-Rated Group 729 | . . . . 173 93 93 173 602 350 . . . 235 716 729 593 . 235 Highest-Rated Ally 159 | . . . . 29 29 29 29 50 46 . . . 47 159 136 96 . 47 Initial UFD Resources 47 | . . . . . . . 23 36 36 42 42 46 46 43 43 43 43 47 Total Orders 13 | . . . . . 3 . 1 . . . . . . 9 . . . . STAY 8 | . . . . . 2 . 1 . . . . . . 5 . . . . FOLLOW 5 | . . . . . 1 . . . . . . . . 4 . . . . Ally Attacks 636 | . . . . 76 8 . 42 117 106 . . . . 155 37 35 . 60 Total Damage 15346 | . . . . 811 116 . 686 3916 2501 . . . . 3723 766 1439 . 1388 Kills 85 | . . . . 9 . . 4 10 17 . . . . 27 5 8 . 5 Allies Corrupted 6 | . . . . . . . 1 . 2 . . . . . 2 . . 1 Allies Melted . | . . . . . . . . . . . . . . . . . . . Intel | -11 -10 -9 -8 -8 -8 -8 -6 -6 -6 -6 -6 -5 -5 -5 -5 -5 -5 -4 ------- Run | Yrd Mat Mat Mat Sto Rec Scr Fac Was Fac Low Dat Pro Fac Ext Cet Arc Hub Fac Active Infowar (turns) 6774 | 128 313 634 571 . . . 482 267 420 121 23 92 227 852 564 79 308 1693 Optics 4749 | . . . . . . . 103 267 420 121 23 92 227 852 564 79 308 1693 Sensors 3193 | . . . 571 . . . 482 188 420 121 23 92 227 31 . . 175 863 Structural 1040 | . . . . . . . 92 . 89 22 . . 147 38 . . 29 623 Seismic 1075 | 128 313 634 . . . . . . . . . . . . . . . . Cloaking 26 | . . . . . . . . 9 . . . . . 17 . . . . Jamming 402 | . . . . . . . . . . . . . . . . . . 402 Robot Analysis Total 6 | . . . . . . 6 . . . . . . . . . . . . Derelict Logs Recovered 2 | . . . . . . . . . . 1 . 1 . . . . . . Drone Launches . | . . . . . . . . . . . . . . . . . . . Drone Recoveries . | . . . . . . . . . . . . . . . . . . . Exploration | -11 -10 -9 -8 -8 -8 -8 -6 -6 -6 -6 -6 -5 -5 -5 -5 -5 -5 -4 ------------- Run | Yrd Mat Mat Mat Sto Rec Scr Fac Was Fac Low Dat Pro Fac Ext Cet Arc Hub Fac Turns Passed 12398 | 184 657 1371 1387 454 1236 1963 500 267 420 121 23 92 227 852 564 79 308 1693 Spaces Moved 10126 | 92 291 630 665 249 724 1334 1196 500 1052 402 84 239 470 1035 272 50 111 730 Core 161 | 4 . . . . . 157 . . . . . . . . . . . . Treads 4744 | 88 237 573 665 249 724 1177 . . . . . . . . 140 50 111 730 Legs 111 | . 54 57 . . . . . . . . . . . . . . . . Wheels 136 | . . . . . . . . . . . . . . 10 126 . . . Hover . | . . . . . . . . . . . . . . . . . . . Flight 4974 | . . . . . . . 1196 500 1052 402 84 239 470 1025 6 . . . Fastest Speed 23 | 50 160 150 148 155 155 50 24 23 27 27 27 27 24 24 100 160 160 155 Average Speed 90 | 155 168 157 150 155 156 142 24 31 27 27 27 27 24 24 133 160 160 159 Slowest Speed 260 | 160 240 260 155 155 224 170 24 97 27 27 27 27 27 100 239 160 160 160 Overloaded Moves . | . . . . . . . . . . . . . . . . . . . Propulsion Burnouts . | . . . . . . . . . . . . . . . . . . . Robots Hopped 28 | . . . . . . . 2 2 9 . . . 3 12 . . . . Potential Cave-ins . | . . . . . . . . . . . . . . . . . . . Cave-ins Triggered . | . . . . . . . . . . . . . . . . . . . Exploration Rate (%) 57 | 4 54 62 71 43 97 84 46 94 36 72 75 50 24 83 73 87 16 29 Regions Visited 18 Branch Regions 10 Pre-discovered Areas 16 | . . . 1 . 8 6 . . . . 1 . . . . . . . Known Exits Taken 14 | . . 1 1 1 1 1 . . 1 1 1 1 1 1 1 1 1 . Unknown Exits Taken 2 | 1 1 . . . . . . . . . . . . . . . . . Scrap Searched 8 | . . . . . . 5 . . . 2 . 1 . . . . . . Spaces Dug 67 | . . . . . . . 22 . 15 2 . 5 2 . . . 6 15 Terrain Destroyed 428 | . . . 27 . . . 30 . 15 2 . 10 2 28 7 . 25 282 Melee 33 | . . . . . . . 20 . 11 . . . 2 . . . . . Projectile 178 | . . . . . . . 2 . 4 2 . 10 . 16 7 . 24 113 AOE 216 | . . . 27 . . . 8 . . . . . . 12 . . . 169 Terrain Rammed . | . . . . . . . . . . . . . . . . . . . Walls Destroyed . | . . . . . . . . . . . . . . . . . . . Machines Disabled . | . . . . . . . . . . . . . . . . . . . Actions | -11 -10 -9 -8 -8 -8 -8 -6 -6 -6 -6 -6 -5 -5 -5 -5 -5 -5 -4 --------- Run | Yrd Mat Mat Mat Sto Rec Scr Fac Was Fac Low Dat Pro Fac Ext Cet Arc Hub Fac Total 12252 | 112 377 832 918 294 790 1397 1351 595 1129 409 83 255 549 1512 387 49 180 1033 Wait 794 | . 14 38 73 22 16 . 65 51 49 2 . 7 45 284 14 . 25 89 Move 10057 | 91 290 629 664 248 723 1333 1192 496 1033 401 83 238 463 1012 271 49 111 730 Hop 25 | . . . . . . . 2 1 9 . . . 3 10 . . . . Pick Up 137 | 2 15 19 24 2 1 29 9 3 1 . . . 2 6 11 . . 13 Fast Attach 86 | 7 1 4 14 2 2 8 4 8 . . . . 5 12 12 . 1 6 Attach 34 | . 1 3 3 1 1 1 4 2 . . . . 2 1 . . 2 13 Detach 17 | . . . 2 . . . 1 4 . . . . 2 2 2 . 1 3 Swap 199 | 1 6 31 25 1 3 2 12 6 11 4 . . 2 18 8 . 8 61 Drop 173 | . 7 20 35 4 6 21 14 11 2 . . . 6 14 22 . . 11 Fire 493 | 9 41 85 65 13 34 . 7 12 4 2 . 10 . 45 32 . 32 102 Melee 113 | . . 1 6 . 3 3 29 1 20 . . . 19 24 7 . . . Ram . | . . . . . . . . . . . . . . . . . . . Kick . | . . . . . . . . . . . . . . . . . . . Crush 19 | 2 2 2 7 . 1 . . . . . . . . . . . . 5 Escape Stasis 42 | . . . . . . . 12 . . . . . . 30 . . . . Rewire 55 | . . . . 1 . . . . . . . . . 54 . . . . Trap . | . . . . . . . . . . . . . . . . . . . Miscellaneous 8 | . . . . . . . . . . . . . . . 8 . . . Route ------- -11/Scrapyard -10/Materials (discovered 5 exits: *Mat x3 / [*Min] / [*Sub]) -9/Materials (discovered 3 exits: *Mat x2 / *Min) -8/Materials (discovered 3 exits: *Fac x2 / *Sto) -8/Storage -8/Recycling (discovered 2 exits: *Fac / *Scr) -8/Scraptown (discovered 2 exits: *Fac x2) -6/Factory (discovered 6 exits: Fac x4 / Low x2) -6/Waste -6/Factory (discovered 4 exits: *Fac x2 / *Low x2) -6/Lower Caves (discovered 2 exits: *Low / *Dat) -6/Data Miner -5/Proximity Caves -5/Factory (discovered 5 exits: *Fac x2 / Upp / *Ext x2) -5/Extension (discovered 2 exits: *Fac / *Cet) -5/Cetus (discovered 2 exits: *Fac / *Arc) -5/Archives (discovered 2 exits: *Hub x2) -5/Hub_04(d) (discovered 2 exits: *Fac x2) -4/Factory (discovered 6 exits: *Res x3 / *Upp x2 / Arm) History --------- Turn | Location | Event 18 | -11/Scrapyard | Discovered new exit (range 16) 185 | -11/Scrapyard | Entered Materials 225 | -10/Materials | Discovered new exit (range 12) 264 | -10/Materials | Discovered new exit (range 9) 300 | -10/Materials | Build established: Mutant 407 | -10/Materials | Discovered new exit (range 15) 664 | -10/Materials | Discovered new exit (range 10) 685 | -10/Materials | Derelicts attacked the area 804 | -10/Materials | Discovered new exit (range 8) 842 | -10/Materials | Entered another Materials area 842 | -9/Materials | Evolved 2 slots: Propulsion x1, Utility x1 1040 | -9/Materials | Discovered new exit (range 14) 1047 | -9/Materials | Destroyed 7 combat bots 1298 | -9/Materials | Core integrity fell below 50% 1302 | -9/Materials | Build established: Scavenger-Mutant 1465 | -9/Materials | Discovered new exit (range 16) 1830 | -9/Materials | Build established: Mutant 1849 | -9/Materials | Identified exit to Materials 2048 | -9/Materials | Core integrity fell below 20% 2136 | -9/Materials | Discovered exit to Materials (range 15) 2199 | -9/Materials | Identified exit to Mines 2213 | -9/Materials | Entered another Materials area 2213 | -8/Materials | Evolved 2 slots: Propulsion x1, Utility x1 2411 | -8/Materials | Destroyed 8 combat bots 2810 | -8/Materials | Discovered new exit (range 14) 2825 | -8/Materials | Identified exit to Factory 3394 | -8/Materials | Discovered new exit (range 15) 3537 | -8/Materials | Discovered exit to Factory (range 9) 3538 | -8/Materials | Identified exit to Storage 3600 | -8/Materials | Entered Storage 3719 | -8/Storage | Assisted by bots powering up and referring to "LRC-V3" 3790 | -8/Storage | Repaired Imp. EM Shotgun? 3809 | -8/Storage | Lost 3 allies 3872 | -8/Storage | Used back door to open Recycling access 3872 | -8/Storage | Discovered new exit (range 5) 4021 | -8/Storage | Build established: Commander-Mutant 4044 | -8/Storage | Identified exit to Recycling 4054 | -8/Storage | Entered Recycling 4054 | -8/Recycling | Accompanied by 5 allies 4587 | -8/Recycling | Scanned before Scraplab entrance 4951 | -8/Recycling | Identified exit to Factory 5084 | -8/Recycling | Learned location of 2 exits from Factory 5108 | -8/Recycling | Learned 4 Factory zone layouts 5120 | -8/Recycling | Learned location of 2 exits from Factory 5144 | -8/Recycling | Learned location of 1 exit from Lower Caves 5180 | -8/Recycling | Learned Storage terminal intel 5265 | -8/Recycling | Entered Scraplab 5279 | -8/Recycling | Discovered new exit (range 2) 5279 | -8/Recycling | Identified exit to Scraptown 5290 | -8/Recycling | Entered Scraptown 5290 | -8/Scraptown | Accompanied by 5 allies 5290 | -8/Scraptown | System corruption cleaned by C-Scrubber 5682 | -8/Scraptown | Heard Great Nut preacher, LISTEN AND RECITE! 5817 | -8/Scraptown | Visited TADAMA 5831 | -8/Scraptown | Visited Cyclists 5854 | -8/Scraptown | Visited SPCMW 5893 | -8/Scraptown | Visited Symbiants 5933 | -8/Scraptown | Visited The Evicted 5976 | -8/Scraptown | Visited Comm Corps 6003 | -8/Scraptown | Visited Fellowship of the Rings 6116 | -8/Scraptown | Visited UFD Registry 6116 | -8/Scraptown | Registered with UFD as "Nanoframe" 6278 | -8/Scraptown | Discovered exit to Factory (range 13) 6392 | -8/Scraptown | Visited Analyses Database 6426 | -8/Scraptown | Visited Curators Association 6475 | -8/Scraptown | Visited DA-N13 Charitable Foundation 6482 | -8/Scraptown | Found DCF Scrap (27 items) 6570 | -8/Scraptown | Visited Abandonware Association 6581 | -8/Scraptown | Learned abandonware demo "OVRCLOCK.EXE" 6587 | -8/Scraptown | Learned abandonware demo "ERRANTS.EXE" 6587 | -8/Scraptown | Learned abandonware demo "REVENGE.EXE" 6619 | -8/Scraptown | Visited Scrap Suit Storage 6640 | -8/Scraptown | Visited Science Testing Area 6669 | -8/Scraptown | Visited Observation Area 6739 | -8/Scraptown | Visited Infowarlord's Domain 6745 | -8/Scraptown | Found Exp. Sensor Array 6773 | -8/Scraptown | Visited Derelict Rescue Squad 6783 | -8/Scraptown | Found DRS Beacon 6855 | -8/Scraptown | Visited Cartography Club 6917 | -8/Scraptown | Learned location of Proximity Caves (-5) 6917 | -8/Scraptown | Learned location of Zion (-7) 6917 | -8/Scraptown | Learned location of Extension (-5) 6917 | -8/Scraptown | Learned location of Testing (-3) 6917 | -8/Scraptown | Learned 16 Materials zone layouts 6917 | -8/Scraptown | Learned 4 Access zone layouts 6917 | -8/Scraptown | Learned 8 Lower Caves zone layouts 6917 | -8/Scraptown | Learned 12 Proximity Caves zone layouts 6917 | -8/Scraptown | Learned 16 Proximity Caves zone layouts 6917 | -8/Scraptown | Learned 20 Proximity Caves zone layouts 6917 | -8/Scraptown | Learned 4 Hub_04(d) zone layouts 6917 | -8/Scraptown | Learned Factory emergency access door positions 6917 | -8/Scraptown | Learned location of 1 exit from Lower Caves 6917 | -8/Scraptown | Learned location of 1 exit from Factory 6917 | -8/Scraptown | Learned location of 2 exits from Proximity Caves 6943 | -8/Scraptown | Found Deep Structural Scanner 7253 | -8/Scraptown | Entered Factory 7253 | -6/Factory | Accompanied by 3 allies 7253 | -6/Factory | Evolved 4 slots: Propulsion x1, Utility x3 7254 | -6/Factory | Identified exit to Factory 7254 | -6/Factory | Identified exit to Lower Caves 7442 | -6/Factory | Fabricated HERF Cannon (x2) 7483 | -6/Factory | Loaded intel: 8 recycling unit locations 7567 | -6/Factory | Scrapoid reinforcements arrived 7619 | -6/Factory | Lost 5 allies 7753 | -6/Factory | Manually triggered Chute Trap 7753 | -6/Factory | Sucked down chute 7753 | -6/Factory | Entered Waste 7762 | -6/Waste | Spotted C-40 Crusher 7767 | -6/Waste | Spotted C-40 Crusher 7768 | -6/Waste | Spotted C-40 Crusher 7768 | -6/Waste | Spotted C-40 Crusher 7769 | -6/Waste | Spotted C-40 Crusher 7769 | -6/Waste | Spotted C-40 Crusher 7772 | -6/Waste | Discovered new exit (range 14) 7775 | -6/Waste | Warlord forces began an assault 7782 | -6/Waste | Allies destroyed C-40 Crusher 7784 | -6/Waste | Allies destroyed C-40 Crusher 7793 | -6/Waste | Allies destroyed C-40 Crusher 7805 | -6/Waste | Allies destroyed C-40 Crusher 7806 | -6/Waste | Allies destroyed C-40 Crusher 7808 | -6/Waste | Attached CPS modules to C-40 Crusher. 7817 | -6/Waste | Allies destroyed C-40 Crusher 7835 | -6/Waste | Found Broken Gamma Bomb Array 7847 | -6/Waste | Lost 9 allies 7973 | -6/Waste | Attached CPS modules to G6-UYL(l). 7990 | -6/Waste | Identified exit to Factory 8020 | -6/Waste | Entered Factory 8020 | -6/Factory | Accompanied by 9 allies 8034 | -6/Factory | Loaded intel: 8 recycling unit locations 8056 | -6/Factory | Allied Derelicts emerged from ambush trap array 8166 | -6/Factory | Central database locked down 8197 | -6/Factory | Build established: Scout 8290 | -6/Factory | Discovered exit to Factory (range 19) 8440 | -6/Factory | Entered Lower Caves 8441 | -6/Lower Caves | Identified exit to Lower Caves 8461 | -6/Lower Caves | Learned location of 1 exit from Factory 8508 | -6/Lower Caves | Encountered a Warlord checkpoint 8549 | -6/Lower Caves | A Derelict revealed a hidden shortcut to meet someone special 8551 | -6/Lower Caves | Identified exit to Data Miner 8561 | -6/Lower Caves | Entered Data Miner 8561 | -6/Data Miner | Discovered new exit (range 6) 8565 | -6/Data Miner | Met Data Miner 8572 | -6/Data Miner | Learned location of Section 7 (-2) 8572 | -6/Data Miner | Acquired the access code to Warlord's prototype stash 8577 | -6/Data Miner | Received God Mode back door access code from Data Miner 8583 | -6/Data Miner | Identified exit to Proximity Caves 8584 | -6/Data Miner | Entered Proximity Caves 8610 | -5/Proximity Caves | Spotted B-75 Beast 8676 | -5/Proximity Caves | Entered Factory 8676 | -5/Factory | Evolved 2 slots: Propulsion x1, Utility x1 8677 | -5/Factory | Identified exit to Upper Caves 8677 | -5/Factory | Identified exit to Extension 8678 | -5/Factory | Identified exit to Factory 8766 | -5/Factory | Watched by a mysterious "MATRIX" hacker. 8795 | -5/Factory | Discovered exit to Factory (range 19) 8872 | -5/Factory | Scrapoid reinforcements arrived 8903 | -5/Factory | Entered Extension 8903 | -5/Extension | Accompanied by 5 allies 9095 | -5/Extension | Rescued a captive Derelict 9100 | -5/Extension | Rescued a captive Derelict 9101 | -5/Extension | Rescued a captive Derelict 9105 | -5/Extension | Rescued a captive Derelict 9106 | -5/Extension | Rescued a captive Derelict 9113 | -5/Extension | Rescued A7 9138 | -5/Extension | Rescued a captive Derelict 9383 | -5/Extension | Spotted B-75 Beast 9403 | -5/Extension | Spotted B-75 Beast 9410 | -5/Extension | Allies destroyed B-75 Beast 9422 | -5/Extension | Allies destroyed B-75 Beast 9461 | -5/Extension | Lost 5 allies 9508 | -5/Extension | Discovered new exit (range 22) 9508 | -5/Extension | Discovered exit to Factory (range 21) 9527 | -5/Extension | Build established: Commander-Sprinter 9601 | -5/Extension | Energy Cycler disabled 9601 | -5/Extension | Rescued a captive Derelict 9603 | -5/Extension | Rescued a captive Derelict 9609 | -5/Extension | Rescued a captive Derelict 9609 | -5/Extension | Rescued a captive Derelict 9685 | -5/Extension | Identified exit to Cetus 9755 | -5/Extension | Entered Cetus 9755 | -5/Cetus | Accompanied by 11 allies (A7) 9760 | -5/Cetus | Acquired a Cetus Manufacturing Module code from A7 9770 | -5/Cetus | Spotted Cetus Guard 9772 | -5/Cetus | Spotted Cetus Guard 9774 | -5/Cetus | Spotted Cetus Guard 9779 | -5/Cetus | Allies destroyed Cetus Guard 9782 | -5/Cetus | Allies destroyed Cetus Guard 9782 | -5/Cetus | Spotted Cetus Guard 9786 | -5/Cetus | Allies destroyed Cetus Guard 9796 | -5/Cetus | Allies destroyed Cetus Guard 9847 | -5/Cetus | Murdered 4 allies 9909 | -5/Cetus | Escorted A7 to Cetus Mainframe 9921 | -5/Cetus | Started Cetus Manufacturing Module 9927 | -5/Cetus | Discovered new exit (range 21) 9946 | -5/Cetus | Manufactured an Enhanced Grunt 9947 | -5/Cetus | Spotted Cetus Guard 9948 | -5/Cetus | Spotted Cetus Guard 9951 | -5/Cetus | Spotted Cetus Guard 9954 | -5/Cetus | Spotted Cetus Guard 9954 | -5/Cetus | Destroyed Cetus Guard 9962 | -5/Cetus | Allies destroyed Cetus Guard 9963 | -5/Cetus | Destroyed Cetus Guard 9966 | -5/Cetus | Destroyed Cetus Guard 9971 | -5/Cetus | Manufactured an Enhanced Grunt 9972 | -5/Cetus | Discovered exit to Factory (range 22) 9996 | -5/Cetus | Manufactured an Enhanced Grunt 9999 | -5/Cetus | Met Revision 17 10021 | -5/Cetus | Manufactured an Enhanced Grunt 10046 | -5/Cetus | Manufactured an Enhanced Grunt 10076 | -5/Cetus | Build established: Scavenger-Mutant 10195 | -5/Cetus | Murdered A7 10197 | -5/Cetus | Extracted ID and sensor layout for unrecognized location from A7's data core 10304 | -5/Cetus | Identified exit to Archives 10319 | -5/Cetus | Entered Archives 10319 | -5/Archives | Accompanied by 9 allies 10339 | -5/Archives | Met Zhirov 10339 | -5/Archives | Discovered new exit (range 22) 10345 | -5/Archives | Reinforcements dispatched to Archives 10347 | -5/Archives | Discovered new exit (range 21) 10380 | -5/Archives | Zhirov warped through subspace 10396 | -5/Archives | Identified exit to Hub_04(d) 10398 | -5/Archives | Zhirov detonated Archives 10398 | -5/Archives | Entered Hub_04(d) 10429 | -5/Hub_04(d) | Lost 9 allies 10448 | -5/Hub_04(d) | Incoming investigation squad redirected 10597 | -5/Hub_04(d) | Network Hub disabled 10604 | -5/Hub_04(d) | Spotted Lightning 10605 | -5/Hub_04(d) | Spotted Lightning 10606 | -5/Hub_04(d) | Spotted Lightning 10620 | -5/Hub_04(d) | Incoming investigation squad redirected 10629 | -5/Hub_04(d) | Destroyed Lightning 10633 | -5/Hub_04(d) | Spotted Lightning 10638 | -5/Hub_04(d) | Spotted Lightning 10643 | -5/Hub_04(d) | Spotted Lightning 10653 | -5/Hub_04(d) | Destroyed Lightning 10668 | -5/Hub_04(d) | System corruption reached 10% 10706 | -5/Hub_04(d) | Entered Factory 10706 | -4/Factory | Evolved 2 slots: Weapon x2 10707 | -4/Factory | Identified exit to Research 10745 | -4/Factory | Garrison activated, responded to threat 11002 | -4/Factory | Scrapoids reinforcements arrived? 11022 | -4/Factory | Build established: Scavenger-Tank 11030 | -4/Factory | Incoming investigation squad redirected 11050 | -4/Factory | Fabricated Enh. Armored Heavy Treads? 11126 | -4/Factory | Lost 4 allies 11241 | -4/Factory | Garrison activated, responded to threat 11280 | -4/Factory | Spotted B-86 Titan 11564 | -4/Factory | Incoming investigation squad redirected 11730 | -4/Factory | Discovered new exit (range 10) 11742 | -4/Factory | Identified exit to Upper Caves 11866 | -4/Factory | Identified exit to Armory 11867 | -4/Factory | Discovered exit to Research (range 15) 12206 | -4/Factory | First assault squad dispatched 12229 | -4/Factory | Incoming assault squad redirected 12245 | -4/Factory | System corruption reached 10% 12307 | -4/Factory | Destroyed 10 combat bots 12309 | -4/Factory | Lost 6 parts (2n3u1w) 12363 | -4/Factory | Scrapoid reinforcements arrived 12399 | -4/Factory | Self-destructed Last Messages --------------- 12390_ Penetrated by Slug. 12390_ Adv. KE Penetrator destroyed. 12390_ Slug penetrates Wall. 12390_ Penetrated by Slug. 12390_ Slug penetrates Wall. 12391_ 9=QQRR:3SI8H&HGO =TJBZE 12391_ Critical hit (Burn: +50). 12392_ P-70 Sage suffers critical hit (Destroy). 12392_ Destroyed Mic. Fission Core. 12392_ Slug penetrates P-70 Sage. 12392_ P-70 Sage suffers critical hit (Destroy). 12392_ Destroyed Antigrav System. 12393_ Acquired 8 matter. 12394_ U-05 Engineer builds a Wall. 12395_ Activated siege mode. 12396_ Slug penetrates P-70 Sage. 12396_ H-77 Assassin destroyed. 12397_ U-05 Engineer builds a Wall. 12398_ 04F18-D reactivates. 12398_ Destroyed Unknown Device. Map ----- +----------------------------------------------------+ | # [! # ### ## #?# "" " ### | | # [! ## " #####?# "" " ? | | # [! [%= %! ########?# "" ! # #?? | | # *]]! ########?# | " #?? | | " ] ] " #####??# " #?? | | #+# #[]! "######?## [ " #?? | | ! ## ##+########??#""""# """"# #?? | | " ####+""# ##??#" ! # #?? | | """ ## # "" """ ##?##"* # ! #?? | | "" ## # " """ #??# " *" #?? | | #" # "F """ #??# " # #?? | | ! ## ! # "" #??# "= = = !# #?? | | ####### # """ #??# # "" * * #### #?? | | ####### !# """ #??## #?? | | ####### # """ #??# ## [ #?? | | ####### # #??# ###### #?? | | ???#### % ##########??# ## ??# = #?? | | ???#### ####????????######## #?? | | ???#### ####????????# [gm! # #?? | | ???#### ####????????#!u%=[ # #?? | | ???#############????????#[*g" + #?? | | ???#############????????#=!gY" # "" #?? | | ???#############????????#[%p%" # "" #?? | | ???#############????????#s=g= ### """ | | ????????????????????????#!=####### """ | | ????????????????????????#@"%* " # """ | | ????????????????????????#["!! " # | | ????????????????????????#[ # | | ????????????????????????# # | | ????????????????????????# # | | ????????????????????????# """"" # ###### | | ????????????????????????# """"" # #????? | | ????????????????????????# """ + ] #????? | | ????????????????????????# # ######## #????? | | ????????????????????????##########?#??????? #????? | | ????????????????????????????????????????????#????? | | ?????????????????????????????????????????????????? | | ?????????????????????????????????????????????????? | | ?????????????????????????????????????????????????? | | ?????????????????????????????????????????????????? | | ?????????????????????????????????????????????????? | | ?????????????????????????????????????????????????? | | ?????????????????????????????????????????????????? | | ?????????????????????????????????????????????????? | | ?????????????????????????????????????????????????? | | ???????????????????????????????????????????????